bitfinex-derivatives/quotes_BNBF0:USTF0_20260114
["timestamp","ask_amount","ask_price","bid_price","bid_amount"]
[1768394122698,0.77422575,934.16,933.05,0.18628802]
[1768394122999,0.77422575,934.15,933.05,0.18628802]
[1768394123199,0.77422575,934.14,933.05,0.18628802]
[1768394123503,0.77422575,934.13,933.05,0.18628802]
[1768394123699,0.77422575,934.12,933.05,0.18628802]
[1768394123902,0.77422575,934.11,933.05,0.18628802]
[1768394124102,0.77422575,934.1,933.05,0.18628802]
[1768394124302,0.77422575,934.09,933.05,0.18628802]
[1768394124604,1.023,934.17,933.05,0.18628802]
[1768394124798,0.77422688,934.16,933.05,0.18628802]
[1768394125000,0.77422688,934.15,933.05,0.18628802]
[1768394125200,0.77422688,934.14,933.05,0.18628802]
[1768394125500,0.77422688,934.13,933.05,0.18628802]
[1768394125703,0.77422688,934.12,933.05,0.18628802]
[1768394125905,0.77422688,934.11,933.05,0.18628802]
[1768394126104,0.77422688,934.1,933.05,0.18628802]
[1768394126305,0.77422688,934.09,933.05,0.18628802]
[1768394126602,1.023,934.17,933.05,0.18628802]
[1768394126805,0.77422884,934.16,933.05,0.18628802]
[1768394127003,0.77422884,934.15,933.05,0.18628802]
[1768394127206,0.77422884,934.14,933.05,0.18628802]
[1768394127507,0.77422884,934.13,933.05,0.18628802]
[1768394127702,0.77422884,934.12,933.05,0.18628802]
[1768394127907,0.77422884,934.11,933.05,0.18628802]
[1768394128108,0.77422884,934.1,933.05,0.18628802]
[1768394128403,0.77422884,934.09,933.05,0.18628802]
[1768394128608,0.18625712,935.01,933.05,0.18628802]
[1768394128907,0.77423003,935.0,933.05,0.18628802]
[1768394129204,0.77423003,934.99,933.05,0.18628802]
[1768394129408,0.77423003,934.98,933.05,0.18628802]
[1768394129604,0.77423003,934.97,933.05,0.18628802]
[1768394129808,0.77423003,934.96,933.05,0.18628802]
[1768394130006,0.77423003,934.95,933.05,0.18628802]
[1768394130208,0.77423003,934.94,933.05,0.18628802]
[1768394130508,0.77422977,934.93,933.05,0.18628802]
[1768394130704,0.77422977,934.92,933.05,0.18628802]
[1768394130908,0.77422977,934.91,933.05,0.18628802]
[1768394131106,0.77422977,934.9,933.05,0.18628802]
[1768394131304,0.77422977,934.89,933.05,0.18628802]
[1768394131505,0.77422977,934.88,933.05,0.18628802]
[1768394131707,0.77422977,934.87,933.05,0.18628802]
[1768394131904,0.77422977,934.86,933.05,0.18628802]
[1768394132206,0.77422977,934.85,933.05,0.18628802]
[1768394132402,0.77422977,934.84,933.05,0.18628802]
[1768394132608,0.77422977,934.83,933.05,0.18628802]
[1768394132809,0.77422977,934.82,933.05,0.18628802]
[1768394133010,0.77422977,934.81,933.05,0.18628802]
[1768394133211,0.77422977,934.8,933.05,0.18628802]
[1768394133412,0.77422977,934.79,933.05,0.18628802]
[1768394133611,0.77422977,934.78,933.05,0.18628802]
[1768394133811,0.77422977,934.77,933.05,0.18628802]
[1768394134007,0.77422977,934.76,933.05,0.18628802]
[1768394134310,0.77422977,934.75,933.05,0.18628802]
[1768394134508,0.77422977,934.74,933.05,0.18628802]
[1768394134811,0.77422977,934.73,933.05,0.18628802]
[1768394135008,0.77422977,934.72,933.05,0.18628802]
[1768394135207,0.77422977,934.71,933.05,0.18628802]
[1768394135412,0.77422977,934.7,933.05,0.18628802]
[1768394135612,0.77422977,934.69,933.05,0.18628802]
[1768394135812,0.77422977,934.68,933.05,0.18628802]
[1768394136008,0.77422977,934.67,933.05,0.18628802]
[1768394136211,0.77422977,934.66,933.05,0.18628802]
[1768394136408,0.77422977,934.65,933.05,0.18628802]
[1768394136610,0.77422977,934.64,933.05,0.18628802]
[1768394136812,0.77422977,934.63,933.05,0.18628802]
[1768394137009,0.77422977,934.62,933.05,0.18628802]
[1768394137209,0.77422977,934.61,933.05,0.18628802]
[1768394137412,0.77422977,934.6,933.05,0.18628802]
[1768394137613,0.77422977,934.59,933.05,0.18628802]
[1768394137809,0.77422977,934.58,933.05,0.18628802]
[1768394138013,0.77422977,934.57,933.05,0.18628802]
[1768394138214,0.77422977,934.56,933.05,0.18628802]
[1768394138416,0.77422977,934.55,933.05,0.18628802]
[1768394138610,0.77422977,934.54,933.05,0.18628802]
[1768394138814,1.045,934.86,933.05,0.18628802]
[1768394138815,0.77422977,934.53,933.05,0.18628802]
[1768394139011,0.77422977,934.52,933.05,0.18628802]
[1768394139216,0.77422977,934.51,933.05,0.18628802]
[1768394139415,0.77422977,934.5,933.05,0.18628802]
[1768394139618,0.77422977,934.49,933.05,0.18628802]
[1768394139913,1.045,934.86,933.24,2.6715279]
[1768394140113,0.77198059,934.85,933.24,2.6715279]
[1768394140311,0.77198059,934.84,933.24,2.6715279]
[1768394140512,0.77198059,934.83,933.37,2.6715279]
[1768394140712,0.77198059,934.82,933.37,2.6715279]
[1768394140916,0.77198059,934.81,933.37,2.6715279]
[1768394141116,1.045,934.86,933.37,2.6715279]
[1768394141515,1.045,934.86,933.35,2.6715279]
[1768394142717,1.045,934.86,933.32,2.6715279]
[1768394143217,1.045,934.86,933.31,2.6715279]
[1768394143715,1.045,934.86,933.28,2.6715279]
[1768394144815,1.045,934.86,933.25,2.6715279]
[1768394145822,1.045,934.86,933.22,2.6715279]
[1768394146920,1.045,934.86,933.2,2.6715279]
[1768394147824,1.045,934.86,933.18,2.6715279]
[1768394148225,1.045,934.86,933.17,2.6715279]
[1768394148826,1.045,934.86,933.16,2.6715279]
[1768394149827,1.045,934.86,933.15,2.6715279]
[1768394150422,1.045,934.86,933.14,2.6715279]
[1768394151324,1.045,934.86,933.12,2.6715279]
[1768394151927,1.045,934.86,933.13,2.6715279]
[1768394152427,1.045,934.86,933.12,2.6715279]
[1768394153425,1.045,934.86,933.21,2.6715279]
[1768394154530,1.045,934.86,933.19,2.6715279]
[1768394155631,1.045,934.86,933.05,0.18628802]
[1768394155632,1.045,934.86,933.13,2.6715279]
[1768394156031,1.045,934.86,933.09,2.6715279]
[1768394156226,0.01047896,935.45,933.09,2.6715279]
[1768394156428,0.76527821,935.44,933.09,2.6715279]
[1768394156628,0.76527821,935.43,933.08,2.6715279]
[1768394156832,0.76527821,935.42,933.08,2.6715279]
[1768394157135,0.76527821,935.41,933.08,2.6715279]
[1768394157433,0.76527821,935.4,933.08,2.6715279]
[1768394157634,0.76527821,935.39,933.08,2.6715279]
[1768394157933,0.76527821,935.38,933.08,2.6715279]
[1768394158233,0.76527821,935.37,933.08,2.6715279]
[1768394158433,0.76527821,935.36,933.08,2.6715279]
[1768394158630,0.76527821,935.35,933.08,2.6715279]
[1768394158833,0.76527821,935.34,933.08,2.6715279]
[1768394159032,0.76527821,935.33,933.08,2.6715279]
[1768394159332,0.76527821,935.32,933.08,2.6715279]
[1768394159533,0.76527821,935.31,933.08,2.6715279]
[1768394159830,0.76527821,935.31,933.05,0.18628802]
[1768394164735,0.76554175,935.3,933.05,0.18628802]
[1768394164937,0.76554175,935.29,933.05,0.18628802]
[1768394165135,0.76554175,935.28,933.05,0.18628802]
[1768394165334,0.76554175,935.27,933.05,0.18628802]
[1768394165635,0.76554175,935.26,933.05,0.18628802]
[1768394165834,0.76554175,935.25,933.05,0.18628802]
[1768394166035,0.76554175,935.24,933.05,0.18628802]
[1768394166235,0.76554175,935.23,933.05,0.18628802]
[1768394166437,0.76554175,935.22,933.05,0.18628802]
[1768394166733,0.76554175,935.21,933.05,0.18628802]
[1768394166935,0.76554175,935.2,933.05,0.18628802]
[1768394167134,0.76554175,935.19,933.05,0.18628802]
[1768394167334,0.76554175,935.18,933.05,0.18628802]
[1768394167539,0.76554175,935.17,933.05,0.18628802]
[1768394167736,0.76554175,935.16,933.05,0.18628802]
[1768394167936,0.76554175,935.15,933.05,0.18628802]
[1768394168236,0.76554175,935.14,933.05,0.18628802]
[1768394168438,0.76554175,935.13,933.05,0.18628802]
[1768394168738,0.76554175,935.12,933.05,0.18628802]
[1768394168936,0.76554175,935.11,933.05,0.18628802]
[1768394169139,0.76554175,935.1,933.05,0.18628802]
[1768394169439,0.76554175,935.09,933.05,0.18628802]
[1768394169638,0.76554175,935.08,933.05,0.18628802]
[1768394169836,0.76554175,935.07,933.05,0.18628802]
[1768394170040,0.76554175,935.06,933.05,0.18628802]
[1768394170239,0.76554175,935.05,933.05,0.18628802]
[1768394170441,0.76554175,935.04,933.05,0.18628802]
[1768394170639,0.76554175,935.03,933.05,0.18628802]
[1768394170838,0.76554175,935.02,933.05,0.18628802]
[1768394171139,0.76554175,935.01,933.05,0.18628802]
[1768394171343,0.76554175,935.0,933.05,0.18628802]
[1768394171642,0.76554175,934.99,933.05,0.18628802]
[1768394171840,0.76554175,934.98,933.05,0.18628802]
[1768394172142,0.76554175,934.97,933.05,0.18628802]
[1768394172340,0.76554175,934.96,933.05,0.18628802]
[1768394172539,0.76554175,934.95,933.05,0.18628802]
[1768394172837,0.76554175,934.94,933.05,0.18628802]
[1768394173042,0.76554175,934.93,933.05,0.18628802]
[1768394173242,0.76554175,934.92,933.05,0.18628802]
[1768394173539,0.76554175,934.91,933.05,0.18628802]
[1768394173742,0.751,935.32,933.05,0.18628802]
[1768394174042,0.76663813,935.31,933.05,2.85781592]
[1768394174238,0.76663813,935.3,933.05,2.85781592]
[1768394174442,0.76663813,935.29,933.06,2.6715279]
[1768394174640,0.76663813,935.28,933.06,2.6715279]
[1768394174839,0.76663813,935.27,933.06,2.6715279]
[1768394175042,0.76663813,935.26,933.06,2.6715279]
[1768394175342,0.76663813,935.25,933.06,2.6715279]
[1768394175542,0.76663813,935.25,933.05,0.18628802]
[1768394175543,0.76663813,935.24,933.08,2.6715279]
[1768394175741,0.76663813,935.23,933.08,2.6715279]
[1768394175940,0.76663813,935.22,933.08,2.6715279]
[1768394176145,0.76663813,935.21,933.08,2.6715279]
[1768394176343,0.76663813,935.2,933.08,2.6715279]
[1768394176640,0.76663813,935.19,933.1,2.6715279]
[1768394176844,0.76663813,935.18,933.1,2.6715279]
[1768394177042,0.76663813,935.17,933.1,2.6715279]
[1768394177245,0.76663813,935.16,933.1,2.6715279]
[1768394177542,0.76663813,935.15,933.12,2.6715279]
[1768394177741,0.76663813,935.14,933.12,2.6715279]
[1768394177941,0.76663813,935.13,933.12,2.6715279]
[1768394178240,0.76663813,935.12,933.12,2.6715279]
[1768394178546,0.76663813,935.11,933.14,2.6715279]
[1768394178742,0.76663813,935.1,933.14,2.6715279]
[1768394178946,0.76663813,935.09,933.14,2.6715279]
[1768394179243,0.76663813,935.08,933.14,2.6715279]
[1768394179442,0.76663813,935.07,933.14,2.6715279]
[1768394179742,0.76663813,935.06,933.17,2.6715279]
[1768394179944,0.76663813,935.05,933.17,2.6715279]
[1768394180246,0.76663813,935.04,933.17,2.6715279]
[1768394180546,0.76663813,935.03,933.17,2.6715279]
[1768394180746,0.76663813,935.02,933.27,2.6715279]
[1768394181044,0.76663813,935.01,933.27,2.6715279]
[1768394181242,0.751,935.32,933.27,2.6715279]
[1768394181243,0.76663813,935.0,933.27,2.6715279]
[1768394181444,0.76663813,934.99,933.27,2.6715279]
[1768394181643,0.76663813,934.98,933.29,2.6715279]
[1768394181841,0.76663813,934.97,933.29,2.6715279]
[1768394182043,0.76663813,934.96,933.29,2.6715279]
[1768394182246,0.76663813,934.95,933.29,2.6715279]
[1768394182445,0.76663813,934.94,933.29,2.6715279]
[1768394182648,0.76663813,934.93,933.29,2.6715279]
[1768394182846,0.76663813,934.92,933.32,2.6715279]
[1768394183047,0.76663813,934.91,933.32,2.6715279]
[1768394183250,0.76663813,934.9,933.32,2.6715279]
[1768394183449,0.76663813,934.89,933.32,2.6715279]
[1768394183749,0.76663813,934.88,933.36,2.6715279]
[1768394183949,0.76663813,934.87,933.36,2.6715279]
[1768394184145,0.76663813,934.86,933.36,2.6715279]
[1768394184352,0.76663813,934.85,933.39,2.6715279]
[1768394184550,0.76663813,934.84,933.39,2.6715279]
[1768394184748,0.76663813,934.83,933.43,2.6715279]
[1768394184945,0.76663813,934.82,933.43,2.6715279]
[1768394185151,0.76663813,934.81,933.43,2.6715279]
[1768394185349,0.76663813,934.8,933.43,2.6715279]
[1768394185550,0.751,935.32,933.43,2.6715279]
[1768394185853,0.77124624,935.31,933.44,2.6715279]
[1768394186053,0.77124624,935.3,933.44,2.6715279]
[1768394186254,0.77124624,935.29,933.44,2.6715279]
[1768394186450,0.77124624,935.28,933.44,2.6715279]
[1768394186652,0.77124624,935.27,933.44,2.6715279]
[1768394186856,0.77124624,935.26,933.44,2.6715279]
[1768394187167,0.77124624,935.25,933.44,2.6715279]
[1768394187358,0.77124624,935.24,933.44,2.6715279]
[1768394187556,0.77124624,935.23,933.44,2.6715279]
[1768394187853,0.77124624,935.22,933.44,2.6715279]
[1768394188052,0.77124624,935.21,933.44,2.6715279]
[1768394188353,0.77124624,935.2,933.44,2.6715279]
[1768394188552,0.77124624,935.19,933.44,2.6715279]
[1768394188757,0.77124624,935.18,933.44,2.6715279]
[1768394189052,0.77124624,935.17,933.43,2.6715279]
[1768394189258,0.77124624,935.16,933.43,2.6715279]
[1768394189455,0.77124624,935.15,933.43,2.6715279]
[1768394189655,0.77124624,935.14,933.43,2.6715279]
[1768394189854,0.77124624,935.13,933.43,2.6715279]
[1768394190157,0.77124624,935.12,933.43,2.6715279]
[1768394190359,0.77124624,935.11,933.43,2.6715279]
[1768394190658,0.77124624,935.1,933.44,2.6715279]
[1768394190857,0.77124624,935.09,933.44,2.6715279]
[1768394191054,0.77124624,935.08,933.44,2.6715279]
[1768394191254,0.77124624,935.07,933.44,2.6715279]
[1768394191557,0.77124624,935.06,933.44,2.6715279]
[1768394191757,0.77124624,935.05,933.44,2.6715279]
[1768394191957,0.77124624,935.04,933.44,2.6715279]
[1768394192154,0.77124624,935.03,933.44,2.6715279]
[1768394192358,0.77124624,935.02,933.44,2.6715279]
[1768394192560,0.77124624,935.01,933.45,2.6715279]
[1768394192858,0.77124624,935.0,933.45,2.6715279]
[1768394193059,0.77124624,934.99,933.45,2.6715279]
[1768394193258,0.77124624,934.98,933.45,2.6715279]
[1768394193454,0.77124624,934.97,933.45,2.6715279]
[1768394193654,0.77124624,934.96,933.45,2.6715279]
[1768394193856,0.77124624,934.95,933.45,2.6715279]
[1768394194059,0.77124624,934.94,933.45,2.6715279]
[1768394194258,0.77124624,934.93,933.45,2.6715279]
[1768394194456,0.77124624,934.92,933.45,2.6715279]
[1768394194756,0.77124624,934.91,933.46,2.6715279]
[1768394194957,0.77124624,934.9,933.46,2.6715279]
[1768394195156,0.77124624,934.89,933.46,2.6715279]
[1768394195358,0.77124624,934.88,933.46,2.6715279]
[1768394195560,0.77124624,934.87,933.46,2.6715279]
[1768394195760,0.77124624,934.86,933.46,2.6715279]
[1768394196058,0.77124624,934.85,933.46,2.6715279]
[1768394196360,0.77124624,934.84,933.46,2.6715279]
[1768394196663,0.77124624,934.83,933.49,2.6715279]
[1768394196963,0.77124624,934.82,933.49,2.6715279]
[1768394197161,0.751,935.32,933.49,2.6715279]
[1768394197365,0.77120356,935.31,933.49,2.6715279]
[1768394197561,0.77120356,935.3,933.49,2.6715279]
[1768394197762,0.77120356,935.29,933.49,2.6715279]
[1768394197964,0.77120356,935.28,933.49,2.6715279]
[1768394198163,0.77120356,935.27,933.49,2.6715279]
[1768394198367,0.77120356,935.26,933.49,2.6715279]
[1768394198563,0.77120356,935.25,933.49,2.6715279]
[1768394198867,0.77120356,935.24,933.49,2.6715279]
[1768394199061,0.77120356,935.23,933.49,2.6715279]
[1768394199263,0.77120356,935.22,933.49,2.6715279]
[1768394199464,0.77120356,935.21,933.49,2.6715279]
[1768394199664,0.77120356,935.2,933.49,2.6715279]
[1768394199869,0.77120356,935.19,933.49,2.6715279]
[1768394200165,0.77120356,935.18,933.49,2.6715279]
[1768394200368,0.77120356,935.17,933.49,2.6715279]
[1768394200568,0.77120356,935.16,933.49,2.6715279]
[1768394200865,0.77120356,935.15,933.5,2.6715279]
[1768394201167,0.77048694,935.14,933.5,2.6715279]
[1768394201365,0.77048694,935.13,933.48,2.6715279]
[1768394201564,0.77048694,935.12,933.48,2.6715279]
[1768394201767,0.751,935.32,933.48,2.6715279]
[1768394201970,0.77049048,935.31,933.48,2.6715279]
[1768394202269,0.77049048,935.3,933.48,2.6715279]
[1768394202469,0.77049048,935.29,933.48,2.6715279]
[1768394202664,0.77049048,935.28,933.48,2.6715279]
[1768394202869,0.77049048,935.27,933.48,2.6715279]
[1768394203070,0.77049048,935.26,933.48,2.6715279]
[1768394203366,0.77049048,935.25,933.48,2.6715279]
[1768394203564,0.77049048,935.24,933.48,2.6715279]
[1768394203767,0.77049048,935.23,933.48,2.6715279]
[1768394203970,0.77049048,935.22,933.48,2.6715279]
[1768394204268,0.77049048,935.21,933.48,2.6715279]
[1768394204466,0.77049048,935.2,933.48,2.6715279]
[1768394204666,0.77049048,935.19,933.48,2.6715279]
[1768394204872,0.77049048,935.18,933.48,2.6715279]
[1768394205069,0.77049048,935.17,933.48,2.6715279]
[1768394205368,0.77049048,935.16,933.48,2.6715279]
[1768394205568,0.77049048,935.15,933.48,2.6715279]
[1768394205769,0.77049048,935.14,933.48,2.6715279]
[1768394205969,0.77049048,935.13,933.48,2.6715279]
[1768394206169,0.77049048,935.12,933.48,2.6715279]
[1768394206370,0.77049048,935.11,933.48,2.6715279]
[1768394206568,0.77049048,935.1,933.48,2.6715279]
[1768394206770,0.77049048,935.09,933.48,2.6715279]
[1768394206971,0.77049048,935.08,933.48,2.6715279]
[1768394207174,0.77049048,935.07,933.48,2.6715279]
[1768394207369,0.77049048,935.06,933.48,2.6715279]
[1768394207571,0.77049048,935.05,933.48,2.6715279]
[1768394207770,0.77049048,935.04,933.48,2.6715279]
[1768394208068,0.77049048,935.03,933.48,2.6715279]
[1768394208268,0.77049048,935.02,933.48,2.6715279]
[1768394208473,0.77049048,935.01,933.48,2.6715279]
[1768394208672,0.18611367,935.68,933.48,2.6715279]
[1768394208673,0.77049048,935.0,933.48,2.6715279]
[1768394208874,0.77049048,934.99,933.48,2.6715279]
[1768394209075,0.77049048,934.98,933.48,2.6715279]
[1768394209272,0.77049048,934.97,933.48,2.6715279]
[1768394209473,0.77049048,934.96,933.48,2.6715279]
[1768394209672,0.77049048,934.95,933.48,2.6715279]
[1768394209872,0.77049048,934.94,933.48,2.6715279]
[1768394210074,0.77049048,934.93,933.48,2.6715279]
[1768394210276,0.77049048,934.92,933.48,2.6715279]
[1768394210477,0.77049048,934.91,933.48,2.6715279]
[1768394210673,0.77049048,934.9,933.48,2.6715279]
[1768394210874,0.77049048,934.89,933.48,2.6715279]
[1768394211073,0.77049048,934.88,933.48,2.6715279]
[1768394211274,0.77049048,934.87,933.48,2.6715279]
[1768394211473,0.77049048,934.86,933.48,2.6715279]
[1768394211672,0.77049048,934.85,933.48,2.6715279]
[1768394211976,0.77049048,934.84,934.16,1.5864786]
[1768394212276,0.77049048,934.83,934.16,1.5864786]
[1768394212473,0.77049048,934.82,934.17,1.5864786]
[1768394212777,0.77049048,934.81,934.17,1.5864786]
[1768394213077,0.77049048,934.8,934.17,1.5864786]
[1768394213273,0.77049048,934.79,934.17,1.5864786]
[1768394213473,1.162,934.97,934.17,1.5864786]
[1768394213676,0.77061901,934.96,934.17,1.5864786]
[1768394213874,0.77061901,934.95,934.17,1.5864786]
[1768394214073,0.77061901,934.94,934.17,1.5864786]
[1768394214277,0.77061901,934.93,934.17,1.5864786]
[1768394214577,0.77061901,934.92,934.17,1.5864786]
[1768394214776,0.77061901,934.91,934.17,1.5864786]
[1768394214977,0.77061901,934.9,934.17,1.5864786]
[1768394215174,0.77061901,934.89,934.17,1.5864786]
[1768394215473,0.77061901,934.88,934.17,1.5864786]
[1768394215672,0.77061901,934.87,934.17,1.5864786]
[1768394215872,1.162,934.97,934.17,1.5864786]
[1768394215873,0.77061901,934.86,934.17,1.5864786]
[1768394216075,0.77061901,934.85,934.17,1.5864786]
[1768394216278,0.77061901,934.84,934.17,1.5864786]
[1768394216478,0.77061901,934.83,934.18,1.5864786]
[1768394216674,0.77061901,934.82,934.18,1.5864786]
[1768394216875,0.77061901,934.81,934.18,1.5864786]
[1768394217074,0.77061901,934.8,934.18,1.5864786]
[1768394217274,0.77061901,934.79,934.18,1.5864786]
[1768394217474,0.77061901,934.78,934.18,1.5864786]
[1768394217675,1.162,934.97,934.18,1.5864786]
[1768394217973,0.77089585,934.96,934.18,1.5864786]
[1768394218176,0.77089585,934.95,934.18,1.5864786]
[1768394218375,0.77089585,934.94,934.19,1.5864786]
[1768394218576,0.77089585,934.93,934.19,1.5864786]
[1768394218774,0.77089585,934.92,934.19,1.5864786]
[1768394218975,1.162,934.97,934.19,1.5864786]
[1768394218976,0.77089585,934.91,934.19,1.5864786]
[1768394219175,0.77089585,934.9,934.19,1.5864786]
[1768394219375,0.77089585,934.89,934.19,1.5864786]
[1768394219673,0.77089585,934.88,934.19,1.5864786]
[1768394219877,0.77089585,934.87,934.19,1.5864786]
[1768394220077,0.77089585,934.86,934.19,1.5864786]
[1768394220278,0.77089585,934.85,934.19,1.5864786]
[1768394220475,0.77089585,934.84,934.19,1.5864786]
[1768394220775,0.77089585,934.83,934.19,1.5864786]
[1768394220978,0.7711168,934.82,934.19,1.5864786]
[1768394221175,0.7711168,934.81,934.19,1.5864786]
[1768394221373,1.162,934.97,934.2,1.5864786]
[1768394221374,0.7711168,934.8,934.2,1.5864786]
[1768394221573,0.7711168,934.79,934.2,1.5864786]
[1768394221774,0.7711168,934.78,934.2,1.5864786]
[1768394221973,0.7711168,934.77,934.2,1.5864786]
[1768394222179,0.7711168,934.76,934.2,1.5864786]
[1768394222374,1.162,934.97,934.2,1.5864786]
[1768394222578,0.77129875,934.96,934.2,1.5864786]
[1768394222779,0.77129875,934.95,934.2,1.5864786]
[1768394223079,0.77129875,934.94,934.2,1.5864786]
[1768394223278,0.77129875,934.93,934.21,1.5864786]
[1768394223479,0.77129875,934.92,934.21,1.5864786]
[1768394223678,0.77129875,934.91,934.21,1.5864786]
[1768394223875,0.77129875,934.9,934.21,1.5864786]
[1768394224178,0.77129875,934.89,934.21,1.5864786]
[1768394224480,0.77129875,934.88,934.22,1.5864786]
[1768394224680,0.77129875,934.87,934.22,1.5864786]
[1768394224876,0.77129875,934.86,934.22,1.5864786]
[1768394225081,0.77129875,934.85,934.21,1.5864786]
[1768394225280,0.77129875,934.84,934.22,1.5864786]
[1768394225482,0.77129875,934.83,934.23,1.5864786]
[1768394225681,0.77129875,934.82,934.23,1.5864786]
[1768394225882,0.77129875,934.81,934.23,1.5864786]
[1768394226182,0.77129875,934.8,934.23,1.5864786]
[1768394226383,0.77129875,934.79,934.23,1.5864786]
[1768394226581,0.77129875,934.78,934.23,1.5864786]
[1768394226785,0.77129875,934.77,934.23,1.5864786]
[1768394227080,0.77129875,934.76,934.23,1.5864786]
[1768394227281,0.77129875,934.75,934.23,1.5864786]
[1768394227482,0.77129875,934.74,934.16,1.5864786]
[1768394227781,0.77129875,934.73,934.1,1.5864786]
[1768394228084,0.77129875,934.72,934.1,1.5864786]
[1768394228279,0.77129875,934.71,934.08,1.5864786]
[1768394228484,0.77129875,934.7,934.08,1.5864786]
[1768394228684,0.77129875,934.69,934.07,1.5864786]
[1768394228885,0.77129875,934.68,934.07,1.5864786]
[1768394229179,0.77129875,934.67,934.07,1.5864786]
[1768394229384,0.77129875,934.66,934.06,1.5864786]
[1768394229580,0.77129875,934.65,934.06,1.5864786]
[1768394229784,0.77129875,934.64,934.06,1.5864786]
[1768394229984,0.77129875,934.63,934.06,1.5864786]
[1768394230185,0.77129875,934.62,934.06,1.5864786]
[1768394230385,1.162,934.97,934.06,1.5864786]
[1768394230685,0.77082722,934.96,934.06,1.5864786]
[1768394230882,0.77082722,934.95,934.06,1.5864786]
[1768394231081,0.77082722,934.94,934.08,1.5864786]
[1768394231285,0.77082722,934.93,934.08,1.5864786]
[1768394231483,0.77082722,934.92,934.08,1.5864786]
[1768394231785,0.77082722,934.91,934.08,1.5864786]
[1768394231980,0.77082722,934.9,934.08,1.5864786]
[1768394232181,0.77082722,934.89,934.08,1.5864786]
[1768394232382,0.77082722,934.88,934.07,1.5864786]
[1768394232585,0.77082722,934.87,934.07,1.5864786]
[1768394232782,0.77082722,934.86,934.07,1.5864786]
[1768394232980,0.77082722,934.85,934.07,1.5864786]
[1768394233180,0.77082722,934.84,934.07,1.5864786]
[1768394233385,0.77082722,934.83,934.07,1.5864786]
[1768394233585,0.77082722,934.82,934.07,1.5864786]
[1768394233787,0.77082722,934.81,934.07,1.5864786]
[1768394233984,0.77082722,934.8,934.07,1.5864786]
[1768394234188,0.77082722,934.79,934.07,1.5864786]
[1768394234387,0.77082722,934.78,934.07,1.5864786]
[1768394234588,0.77082722,934.77,934.07,1.5864786]
[1768394234789,0.77082722,934.76,934.07,1.5864786]
[1768394234985,0.77082722,934.75,934.07,1.5864786]
[1768394235288,0.77082722,934.74,934.07,1.5864786]
[1768394235488,0.77082722,934.73,934.07,1.5864786]
[1768394235790,0.77082722,934.72,934.07,1.5864786]
[1768394235986,0.77082722,934.71,934.07,1.5864786]
[1768394236288,0.77082722,934.7,934.06,1.5864786]
[1768394236490,0.77082722,934.69,934.06,1.5864786]
[1768394236689,0.77082722,934.68,934.06,1.5864786]
[1768394236887,0.77082722,934.67,934.06,1.5864786]
[1768394237185,1.074,934.81,934.06,1.5864786]
[1768394237390,0.77037476,934.8,934.06,1.5864786]
[1768394237588,0.77037476,934.79,934.06,1.5864786]
[1768394237786,0.77037476,934.78,934.06,1.5864786]
[1768394238086,0.77037476,934.77,934.06,1.5864786]
[1768394238283,0.77037476,934.76,934.06,1.5864786]
[1768394238488,0.77037476,934.75,934.06,1.5864786]
[1768394238685,0.77037476,934.74,934.06,1.5864786]
[1768394238886,0.77037476,934.73,934.06,1.5864786]
[1768394239086,0.77037476,934.72,934.06,1.5864786]
[1768394239284,0.77037476,934.71,934.06,1.5864786]
[1768394239490,0.77037476,934.7,934.06,1.5864786]
[1768394239785,0.77037476,934.69,934.06,1.5864786]
[1768394239990,0.77037476,934.68,934.06,1.5864786]
[1768394240186,1.074,934.81,934.06,1.5864786]
[1768394240387,0.77026972,934.8,934.05,1.5864786]
[1768394240588,0.77026972,934.79,934.06,1.5864786]
[1768394240793,0.77026972,934.78,934.06,1.5864786]
[1768394240992,0.77026972,934.77,934.06,1.5864786]
[1768394241295,0.77026972,934.76,934.05,1.5864786]
[1768394241488,0.77026972,934.75,934.05,1.5864786]
[1768394241787,0.77026972,934.74,934.05,1.5864786]
[1768394241988,0.77026972,934.73,934.05,1.5864786]
[1768394242192,0.77026972,934.72,934.05,1.5864786]
[1768394242390,0.77026972,934.71,934.05,1.5864786]
[1768394242689,0.77026972,934.7,934.05,1.5864786]
[1768394242892,0.77026972,934.69,934.05,1.5864786]
[1768394243094,0.77026972,934.68,934.05,1.5864786]
[1768394243294,1.074,934.81,934.05,1.5864786]
[1768394243593,0.77021333,934.8,934.05,1.5864786]
[1768394243794,0.77021333,934.79,934.05,1.5864786]
[1768394243988,0.77021333,934.78,934.05,1.5864786]
[1768394244192,0.77021333,934.77,934.05,1.5864786]
[1768394244393,0.77021333,934.76,934.1,1.5864786]
[1768394244589,0.77021333,934.75,934.11,1.5864786]
[1768394244790,0.77021333,934.74,934.11,1.5864786]
[1768394244989,1.074,934.81,934.11,1.5864786]
[1768394245192,0.77017791,934.8,934.11,1.5864786]
[1768394245488,0.77017791,934.79,934.11,1.5864786]
[1768394245691,0.77017791,934.78,934.11,1.5864786]
[1768394245887,0.77017791,934.77,934.11,1.5864786]
[1768394246092,0.77017791,934.76,934.11,1.5864786]
[1768394246288,0.77017791,934.75,934.12,1.5864786]